fUSD/lending_fUSD_20240425
["ID","MTS","AMOUNT","RATE_DAILY","PERIOD"]
[323485043,1714044637990,-500.0,0.00011815,2]
[323485044,1714044638000,-500.0,0.00011815,2]
[323485045,1714044638009,-500.0,0.00011815,2]
[323485046,1714044638019,-315.18884043,0.00011815,2]
[323485047,1714044638029,-500.0,0.00011815,2]
[323485048,1714044638038,-503.34025107,0.00011815,2]
[323485049,1714044638048,-502.13160845,0.00011815,2]
[323485050,1714044638058,-500.0,0.00011815,2]
[323485051,1714044638067,-500.0,0.00011815,2]
[323485052,1714044638076,-500.0,0.00011815,2]
[323485053,1714044638088,-500.0,0.00011815,2]
[323485054,1714044638097,-500.0,0.00011815,2]
[323485055,1714044638105,-500.0,0.00011815,2]
[323485056,1714044638115,-500.0,0.00011815,2]
[323485057,1714044638124,-503.95102487,0.00011815,2]
[323485058,1714044638134,-500.0,0.00011815,2]
[323485059,1714044638143,-500.0,0.00011815,2]
[323485060,1714044638152,-500.0,0.00011815,2]
[323485061,1714044638161,-504.31228408,0.00011815,2]
[323485062,1714044638170,-500.0,0.00011815,2]
[323485063,1714044638180,-500.0,0.00011815,2]
[323485065,1714044638189,-177.9055747,0.00011815,2]
[323485067,1714044638199,-502.62509489,0.00011815,2]
[323485069,1714044638208,-500.0,0.00011815,2]
[323485071,1714044638217,-500.0,0.00011815,2]
[323485073,1714044638227,-439.4160364,0.00011815,2]
[323485075,1714044638235,-500.0,0.00011815,2]
[323485077,1714044638246,-586.08214952,0.00011815,2]
[323485079,1714044638256,-500.0,0.00011815,2]
[323485080,1714044638266,-500.0,0.00011815,2]
[323485082,1714044638277,-504.6265962,0.00011815,2]
[323485083,1714044638288,-500.0,0.00011815,2]
[323485084,1714044638298,-500.0,0.00011815,2]
[323485085,1714044638308,-551.35,0.00011815,2]
[323485086,1714044638319,-500.0,0.00011815,2]
[323485087,1714044638329,-500.0,0.00011815,2]
[323485088,1714044638342,-500.0,0.00011815,2]
[323485089,1714044638352,-500.0,0.00011815,2]
[323485090,1714044638361,-500.0,0.00011815,2]
[323485091,1714044638371,-646.6962572,0.00011815,2]
[323485092,1714044638381,-639.86,0.00011815,2]
[323485093,1714044638392,-500.0,0.00011815,2]
[323485094,1714044638403,-500.0,0.00011815,2]
[323485095,1714044638413,-500.0,0.00011815,2]
[323485096,1714044638422,-616.03,0.00011815,2]
[323485097,1714044638431,-500.0,0.00011815,2]
[323485098,1714044638440,-500.0,0.00011815,2]
[323485099,1714044638449,-150.0,0.00011815,2]
[323485100,1714044638459,-500.0,0.00011815,2]
[323485101,1714044638469,-500.0,0.00011815,2]
[323485102,1714044638478,-514.13339924,0.00011815,2]
[323485103,1714044638487,-538.30107691,0.00011815,2]
[323485104,1714044638499,-500.0,0.00011815,2]
[323485105,1714044638508,-500.0,0.00011815,2]
[323485106,1714044638519,-500.0,0.00011815,2]
[323485107,1714044638532,-500.0,0.00011815,2]
[323485108,1714044638541,-500.0,0.00011815,2]
[323485109,1714044638550,-500.0,0.00011815,2]
[323485110,1714044638559,-500.0,0.00011815,2]
[323485111,1714044638571,-500.0,0.00011815,2]
[323485112,1714044638581,-500.0,0.00011815,2]
[323485113,1714044638590,-500.0,0.00011815,2]
[323485114,1714044638600,-500.0,0.00011815,2]
[323485115,1714044638611,-500.0,0.00011815,2]
[323485116,1714044638621,-500.0,0.00011815,2]
[323485117,1714044638630,-500.0,0.00011815,2]
[323485118,1714044638640,-500.0,0.00011815,2]
[323485119,1714044638649,-500.0,0.00011815,2]
[323485120,1714044638659,-500.0,0.00011815,2]
[323485121,1714044638668,-500.0,0.00011815,2]
[323485122,1714044638677,-500.0,0.00011815,2]
[323485123,1714044638686,-500.0,0.00011815,2]
[323485124,1714044638897,-500.0,0.00011815,2]
[323485125,1714044638907,-500.0,0.00011815,2]
[323485126,1714044638916,-699.29,0.00011815,2]
[323485127,1714044638926,-500.0,0.00011815,2]
[323485128,1714044638935,-297.98277732,0.00011815,2]
[323485129,1714044638944,-500.0,0.00011815,2]
[323485130,1714044638954,-500.0,0.00011815,2]
[323485131,1714044638962,-500.0,0.00011815,2]
[323485132,1714044638972,-500.0,0.00011815,2]
[323485133,1714044638981,-500.0,0.00011815,2]
[323485134,1714044638990,-500.0,0.00011815,2]
[323485135,1714044639000,-500.0,0.00011815,2]
[323485136,1714044639009,-500.0,0.00011815,2]
[323485137,1714044639018,-500.0,0.00011815,2]
[323485138,1714044639028,-365.15484592,0.00011815,2]
[323485139,1714044639037,-500.0,0.00011815,2]
[323485140,1714044639047,-500.0,0.00011815,2]
[323485141,1714044639056,-500.0,0.00011815,2]
[323485142,1714044639066,-500.0,0.00011815,2]
[323485143,1714044639075,-500.0,0.00011815,2]
[323485144,1714044639086,-500.0,0.00011815,2]
[323485145,1714044639095,-500.0,0.00011815,2]
[323485146,1714044639104,-500.0,0.00011815,2]
[323485147,1714044639114,-500.0,0.00011815,2]
[323485148,1714044639125,-500.0,0.00011815,2]
[323485149,1714044639134,-150.43829457,0.00011815,2]
[323485150,1714044639144,-500.0,0.00011815,2]
[323485151,1714044639154,-500.0,0.00011815,2]
[323485152,1714044639163,-500.0,0.00011815,2]
[323485153,1714044639172,-500.0,0.00011815,2]
[323485154,1714044639182,-500.0,0.00011815,2]
[323485155,1714044639191,-500.0,0.00011815,2]
[323485156,1714044639200,-500.0,0.00011815,2]
[323485157,1714044639210,-500.0,0.00011815,2]
[323485158,1714044639219,-500.0,0.00011815,2]
[323485159,1714044639228,-500.0,0.00011815,2]
[323485160,1714044639238,-500.0,0.00011815,2]
[323485161,1714044639247,-500.0,0.00011815,2]
[323485162,1714044639256,-1536.99,0.00011815,2]
[323485163,1714044639265,-500.0,0.00011815,2]
[323485164,1714044639274,-500.0,0.00011815,2]
[323485165,1714044639283,-500.0,0.00011815,2]
[323485166,1714044639292,-1918.18,0.00011815,2]
[323485167,1714044639301,-848.33,0.00011815,2]
[323485168,1714044639310,-500.0,0.00011815,2]
[323485169,1714044639319,-1742.38,0.00011815,2]
[323485170,1714044639327,-1246.39034968,0.00011815,2]
[323485171,1714044639342,-113.21965032,0.00011815,2]
[323485172,1714044639350,-500.0,0.00011815,2]
[323485173,1714044639359,-500.0,0.00011815,2]
[323485174,1714044639368,-1495.48089166,0.00011815,2]
[323485175,1714044639387,-911.83619294,0.00011815,2]
[323485176,1714044639406,-35.5829154,0.00011815,2]
[323485177,1714044639415,-500.0,0.00011815,2]
[323485178,1714044639424,-498.1579692,0.00011815,2]
[323485179,1714044639433,-500.0,0.00011815,2]
[323485180,1714044639442,-500.0,0.00011815,2]
[323485181,1714044639451,-500.0,0.00011815,2]
[323485182,1714044639460,-1043.72,0.00011815,2]
[323485183,1714044639469,-500.0,0.00011815,2]
[323485184,1714044639478,-500.0,0.00011815,2]
[323485185,1714044639487,-500.0,0.00011815,2]
[323485186,1714044639496,-500.0,0.00011815,2]
[323485187,1714044639505,-500.0,0.00011815,2]
[323485188,1714044639514,-629.06,0.00011815,2]
[323485189,1714044639523,-564.47,0.00011815,2]
[323485190,1714044639536,-453.15212751,0.00011815,2]
[323485191,1714044639546,-500.0,0.00011815,2]
[323485192,1714044639556,-500.0,0.00011815,2]
[323485193,1714044639565,-500.0,0.00011815,2]
[323485194,1714044639578,-500.0,0.00011815,2]
[323485195,1714044639590,-500.0,0.00011815,2]
[323485196,1714044639599,-500.0,0.00011815,2]
[323485197,1714044639608,-500.0,0.00011816,2]
[323485198,1714044639619,-500.0,0.00011816,2]
[323485199,1714044639629,-507.94123038,0.00011816,2]
[323485201,1714044639639,-504.4335535,0.00011816,2]
[323485203,1714044639649,-500.0,0.00011816,2]
[323485204,1714044639658,-500.0,0.00011816,2]
[323485205,1714044639667,-500.0,0.00011816,2]
[323485206,1714044639677,-506.35789469,0.00011816,2]
[323485207,1714044639687,-500.0,0.00011816,2]
[323485209,1714044639696,-500.0,0.00011816,2]
[323485210,1714044639705,-500.0,0.00011816,2]
[323485211,1714044639714,-500.0,0.00011816,2]
[323485212,1714044639724,-500.0,0.00011816,2]
[323485213,1714044639733,-500.0,0.00011816,2]
[323485214,1714044639742,-500.0,0.00011816,2]
[323485215,1714044639751,-500.0,0.00011816,2]
[323485216,1714044639760,-500.0,0.00011816,2]
[323485217,1714044639769,-500.0,0.00011816,2]
[323485218,1714044639779,-500.0,0.00011816,2]
[323485219,1714044639787,-500.0,0.00011816,2]
[323485220,1714044639796,-329.041338,0.00011816,2]
[323485221,1714044639806,-500.0,0.00011816,2]
[323485222,1714044639815,-500.0,0.00011816,2]
[323485223,1714044639825,-549.22850341,0.00011816,2]
[323485224,1714044639837,-500.0,0.00011816,2]
[323485225,1714044639846,-550.63,0.00011816,2]
[323485226,1714044639855,-500.0,0.00011816,2]
[323485227,1714044639864,-500.0,0.00011816,2]
[323485228,1714044639873,-500.0,0.00011816,2]
[323485229,1714044639882,-500.0,0.00011816,2]
[323485230,1714044639891,-500.0,0.00011816,2]
[323485231,1714044639900,-500.0,0.00011816,2]
[323485232,1714044639910,-500.0,0.00011816,2]
[323485233,1714044639919,-500.0,0.00011816,2]
[323485234,1714044639928,-500.0,0.00011816,2]
[323485235,1714044639938,-500.0,0.00011816,2]
[323485236,1714044639947,-500.0,0.00011816,2]
[323485237,1714044639956,-500.0,0.00011816,2]
[323485238,1714044639965,-500.0,0.00011816,2]
[323485239,1714044639974,-500.0,0.00011816,2]
[323485240,1714044639983,-566.43874096,0.00011816,2]
[323485241,1714044639992,-500.0,0.00011816,2]
[323485242,1714044640001,-500.0,0.00011816,2]
[323485243,1714044640011,-208.13727306,0.00011816,2]
[323485244,1714044640020,-500.0,0.00011816,2]
[323485245,1714044640029,-500.0,0.00011816,2]
[323485246,1714044640039,-500.0,0.00011816,2]
[323485247,1714044640048,-500.0,0.00011816,2]
[323485248,1714044640057,-500.0,0.00011816,2]
[323485249,1714044640068,-500.0,0.00011816,2]
[323485250,1714044640078,-500.0,0.00011816,2]
[323485251,1714044640089,-500.0,0.00011816,2]
[323485252,1714044640098,-500.0,0.00011816,2]
[323485253,1714044640108,-500.0,0.00011816,2]
[323485254,1714044640117,-500.0,0.00011816,2]
[323485255,1714044640126,-500.0,0.00011816,2]
[323485256,1714044640135,-500.0,0.00011816,2]
[323485257,1714044640144,-500.0,0.00011816,2]
[323485258,1714044640154,-500.0,0.00011816,2]
[323485259,1714044640163,-500.0,0.00011816,2]
[323485260,1714044640172,-500.0,0.00011816,2]
[323485261,1714044640182,-500.0,0.00011816,2]
[323485262,1714044640192,-500.0,0.00011816,2]
[323485263,1714044640201,-500.0,0.00011816,2]
[323485264,1714044640210,-500.0,0.00011816,2]
[323485265,1714044640220,-500.0,0.00011816,2]
[323485266,1714044640230,-532.76,0.00011816,2]
[323485267,1714044640243,-269.46865366,0.00011816,2]
[323485268,1714044640254,-500.0,0.00011816,2]
[323485269,1714044640264,-500.0,0.00011816,2]
[323485270,1714044640273,-311.27105515,0.00011816,2]
[323485271,1714044640282,-500.0,0.00011816,2]
[323485272,1714044640291,-500.0,0.00011816,2]
[323485273,1714044640300,-500.0,0.00011816,2]
[323485274,1714044640311,-500.0,0.00011816,2]
[323485275,1714044640323,-500.0,0.00011816,2]
[323485276,1714044640333,-500.0,0.00011816,2]
[323485277,1714044640346,-177.17,0.00011816,2]
[323485278,1714044640355,-500.0,0.00011816,2]
[323485279,1714044640365,-500.0,0.00011816,2]
[323485281,1714044640378,-500.0,0.00011816,2]
[323485282,1714044640388,-614.86,0.00011816,2]
[323485283,1714044640398,-500.0,0.00011816,2]
[323485284,1714044640407,-500.0,0.00011816,2]
[323485285,1714044640418,-500.0,0.00011816,2]
[323485286,1714044640427,-500.0,0.00011816,2]
[323485287,1714044640437,-606.82549983,0.00011816,2]
[323485288,1714044640447,-185.30231679,0.00011816,2]
[323485289,1714044640456,-500.0,0.00011816,2]
[323485290,1714044640466,-500.0,0.00011816,2]
[323485291,1714044640475,-202.6998776,0.00011816,2]
[323485292,1714044640484,-500.0,0.00011816,2]
[323485293,1714044640494,-500.0,0.00011816,2]
[323485294,1714044640503,-500.0,0.00011816,2]
[323485295,1714044640512,-500.0,0.00011816,2]
[323485296,1714044640522,-500.0,0.00011816,2]
[323485297,1714044640535,-500.0,0.00011816,2]
[323485298,1714044640545,-273.76695775,0.00011816,2]
[323485299,1714044640554,-500.0,0.00011816,2]
[323485300,1714044640563,-500.0,0.00011816,2]
[323485301,1714044640572,-500.0,0.00011816,2]
[323485302,1714044640581,-500.0,0.00011816,2]
[323485303,1714044640592,-500.0,0.00011816,2]
[323485304,1714044640601,-500.0,0.00011816,2]
[323485305,1714044640611,-500.0,0.00011816,2]
[323485306,1714044640621,-500.0,0.00011816,2]
[323485307,1714044640632,-500.0,0.00011816,2]
[323485308,1714044640641,-500.0,0.00011816,2]
[323485309,1714044640651,-639.86,0.00011816,2]
[323485310,1714044640660,-500.0,0.00011816,2]
[323485311,1714044640670,-500.0,0.00011816,2]
[323485312,1714044640680,-407.84900143,0.00011816,2]
[323485313,1714044640689,-500.0,0.00011816,2]
[323485314,1714044640698,-504.07438619,0.00011816,2]
[323485315,1714044640707,-500.0,0.00011816,2]
[323485316,1714044640717,-500.0,0.00011816,2]
[323485317,1714044640726,-500.0,0.00011816,2]
[323485318,1714044640735,-500.0,0.00011816,2]
[323485319,1714044640745,-500.0,0.00011816,2]
[323485320,1714044640754,-500.0,0.00011816,2]
[323485321,1714044640763,-500.0,0.00011816,2]
[323485322,1714044640772,-500.0,0.00011816,2]
[323485323,1714044640781,-500.0,0.00011816,2]
[323485324,1714044640790,-500.0,0.00011816,2]
[323485325,1714044640799,-500.0,0.00011816,2]
[323485326,1714044640809,-500.0,0.00011816,2]
[323485327,1714044640819,-537.36520538,0.00011816,2]
[323485328,1714044640832,-19.45479462,0.00011816,2]
[323485329,1714044640842,-500.0,0.00011816,2]
[323485330,1714044640852,-500.0,0.00011816,2]
[323485331,1714044640861,-500.0,0.00011816,2]
[323485332,1714044640870,-500.0,0.00011816,2]
[323485333,1714044640879,-500.0,0.00011816,2]
[323485334,1714044640889,-500.0,0.00011816,2]
[323485335,1714044640899,-500.0,0.00011816,2]
[323485336,1714044640908,-500.0,0.00011816,2]
[323485337,1714044640917,-500.0,0.00011816,2]
[323485338,1714044640926,-500.0,0.00011816,2]
[323485339,1714044640935,-500.0,0.00011816,2]
[323485340,1714044640944,-439.56850667,0.00011816,2]
[323485341,1714044640953,-500.0,0.00011816,2]
[323485342,1714044640962,-500.0,0.00011816,2]
[323485343,1714044640971,-500.0,0.00011816,2]
[323485344,1714044640980,-212.19371863,0.00011816,2]
[323485345,1714044640989,-503.29,0.00011816,2]
[323485346,1714044640998,-500.0,0.00011816,2]
[323485347,1714044641007,-500.0,0.00011816,2]
[323485348,1714044641016,-249.25,0.00011817,2]
[323485349,1714044641025,-500.0,0.00011817,2]
[323485350,1714044641034,-500.0,0.00011817,2]
[323485351,1714044641044,-680.49,0.00011817,2]
[323485352,1714044641053,-433.62,0.00011818,2]
[323485353,1714044641063,-500.0,0.00011989,2]
[323485354,1714044641073,-1562.94,0.00011989,2]
[323485355,1714044641084,-500.0,0.00011989,2]
[323485356,1714044641096,-500.0,0.00011989,2]
[323485357,1714044641105,-915.68,0.00011989,2]
[323485358,1714044641115,-529.07,0.00011989,2]
[323485359,1714044641125,-500.0,0.00011989,2]
[323485360,1714044641134,-500.0,0.00011989,2]
[323485361,1714044641145,-2399.64085058,0.00011989,2]
[323485362,1714044641382,-144.60914942,0.00011989,2]
[323485363,1714044641392,-122.48184952,0.00011989,2]
[323485364,1714044641405,-394.15938424,0.00011989,2]
[323485365,1714044641417,-193.21876624,0.00011989,2]
[323485366,1714044641426,-549.84,0.00011989,2]
[323485367,1714044641436,-31.51323378,0.00011989,2]
[323485368,1714044641451,-4262.99676622,0.00011989,2]
[323485369,1714044641461,-509.49,0.00011989,2]
[323485370,1714044641471,-245.69,0.00011989,2]
[323485371,1714044641482,-294.17,0.00011989,2]
[323485372,1714044641492,-500.0,0.00011989,2]
[323485373,1714044641502,-1112.95,0.00011989,2]
[323485374,1714044641513,-624.1,0.00011989,2]
[323485375,1714044641523,-500.0,0.00011989,2]
[323485376,1714044641538,-500.0,0.00011989,2]
[323485377,1714044641548,-595.57,0.00011989,2]
[323485378,1714044641560,-500.0,0.00011989,2]
[323485379,1714044641572,-522.8870035,0.00011989,2]
[323485380,1714044641584,-500.0,0.00011989,2]
[323485381,1714044641596,-500.0,0.00011989,2]
[323485382,1714044641610,-1697.05,0.00011989,2]
[323485383,1714044641620,-6545.14,0.00011989,2]
[323485384,1714044641630,-2135.46,0.00011989,2]
[323485385,1714044641641,-2413.01,0.00011989,2]
[323485386,1714044641652,-5069.80181228,0.00011989,2]
[323485387,1714044641667,-484.08035338,0.00011989,2]
[323485388,1714044641678,-1352.377572,0.00011989,2]
[323485389,1714044641692,-500.6643648,0.00011989,2]
[323485390,1714044641715,-3122.18589754,0.00011989,2]
[323485391,1714044641724,-500.0,0.00011989,2]
[323485392,1714044641734,-500.0,0.00011989,2]
[323485393,1714044641745,-695.31,0.00011989,2]
[323485394,1714044641754,-505.58,0.00011989,2]
[323485395,1714044641764,-319.37,0.00011989,2]
[323485396,1714044641773,-1519.53,0.00011989,2]
[323485397,1714044641782,-500.0,0.00011989,2]
[323485398,1714044641791,-906.78,0.00011989,2]
[323485399,1714044641801,-500.0,0.00011989,2]
[323485400,1714044641811,-768.33,0.00011989,2]
[323485401,1714044641820,-295.96,0.00011989,2]
[323485402,1714044641830,-8474.31,0.00011989,2]
[323485403,1714044641841,-952.17,0.00011989,2]
[323485404,1714044641850,-500.0,0.00011989,2]
[323485405,1714044641859,-372.06,0.00011989,2]
[323485406,1714044641869,-209.5,0.00011989,2]
[323485407,1714044641879,-500.0,0.00011989,2]
[323485408,1714044641888,-500.0,0.00011989,2]
[323485409,1714044641897,-500.0,0.00011989,2]
[323485410,1714044641907,-180.82,0.00011989,2]
[323485411,1714044641917,-500.0,0.00011989,2]
[323485412,1714044641926,-500.0,0.00011989,2]
[323485413,1714044641936,-500.0,0.00011989,2]
[323485414,1714044641946,-309.27,0.00011989,2]
[323485415,1714044641955,-7500.0,0.00011989,2]
[323485416,1714044641965,-505.14,0.00012089,2]
[323485417,1714044641974,-363.22,0.00012089,2]
[323485418,1714044641983,-394.97,0.00012089,2]
[323485419,1714044641992,-500.0,0.00012089,2]
[323485420,1714044642002,-616.03,0.00012089,2]
[323485421,1714044642011,-500.0,0.00012089,2]
[323485422,1714044642021,-387.19,0.00012089,2]
[323485423,1714044642031,-500.0,0.00012089,2]
[323485424,1714044642041,-500.0,0.00012089,2]
[323485425,1714044642052,-500.0,0.00012089,2]
[323485426,1714044642062,-500.0,0.00012089,2]
[323485427,1714044642071,-699.29,0.00012089,2]
[323485428,1714044642081,-500.0,0.00012089,2]
[323485429,1714044642090,-500.0,0.00012089,2]
[323485430,1714044642099,-500.0,0.00012089,2]
[323485431,1714044642108,-500.0,0.00012089,2]
[323485432,1714044642117,-500.0,0.00012089,2]
[323485433,1714044642126,-500.0,0.00012089,2]
[323485434,1714044642135,-500.0,0.00012089,2]
[323485435,1714044642145,-1536.99,0.00012089,2]
[323485436,1714044642154,-500.0,0.00012089,2]
[323485437,1714044642163,-500.0,0.00012089,2]
[323485438,1714044642173,-1918.18,0.00012089,2]
[323485439,1714044642183,-518.92012092,0.00012089,2]
[323485440,1714044642196,-329.40987908,0.00012089,2]
[323485441,1714044642205,-1742.38,0.00012089,2]
[323485442,1714044642215,-1359.61,0.00012089,2]
[323485443,1714044642224,-500.0,0.00012089,2]
[323485444,1714044642234,-2442.9,0.00012089,2]
[323485445,1714044642245,-500.0,0.00012089,2]
[323485446,1714044642255,-500.0,0.00012089,2]
[323485447,1714044642265,-344.31,0.00012089,2]
[323485448,1714044642274,-1043.72,0.00012089,2]
[323485449,1714044642283,-170.15,0.00012089,2]
[323485450,1714044642295,-500.0,0.00012089,2]
[323485451,1714044642304,-500.0,0.00012089,2]
[323485452,1714044642313,-500.0,0.00012089,2]
[323485453,1714044642323,-308.49,0.00012089,2]
[323485454,1714044642332,-479.15,0.0001209,2]
[323485455,1714044642342,-500.0,0.0001209,2]
[323485456,1714044642351,-500.0,0.0001209,2]
[323485457,1714044642361,-500.0,0.0001209,2]
[323485458,1714044642370,-460.55,0.0001209,2]
[323485459,1714044642380,-190.88,0.0001209,2]
[323485460,1714044642389,-514.34,0.0001209,2]
[323485461,1714044642399,-500.0,0.0001209,2]
[323485462,1714044642409,-412.44,0.0001209,2]
[323485463,1714044642418,-535.54,0.0001209,2]
[323485464,1714044642428,-505.58,0.0001209,2]
[323485465,1714044642438,-333.8,0.0001209,2]
[323485466,1714044642448,-169.11,0.0001209,2]
[323485467,1714044642457,-355.17,0.0001209,2]
[323485468,1714044642466,-393.6527645,0.0001209,2]
[323485469,1714044642477,-315.28,0.0001209,2]
[323485470,1714044642486,-500.0,0.0001209,2]
[323485471,1714044642495,-345.33,0.0001209,2]
[323485472,1714044642505,-112.3631144,0.0001209,2]
[323485476,1714044643059,-342.77116761,0.00011714,2]
[323485477,1714044643069,-130.2568856,0.0001209,2]
[323485478,1714044643078,-404.29,0.0001209,2]
[323485479,1714044643087,-467.69,0.0001209,2]
[323485480,1714044643098,-254.51,0.0001209,2]
[323485481,1714044643107,-169.2,0.0001209,2]
[323485482,1714044643116,-341.73,0.0001209,2]
[323485483,1714044643125,-500.0,0.00012091,2]
[323485484,1714044643135,-408.71218372,0.00012091,2]
[323485497,1714044645877,-156.69781628,0.00012091,2]
[323485498,1714044645887,-680.49,0.00012091,2]
[323485499,1714044645897,-1562.94,0.00012263,2]
[323485500,1714044645907,-385.21458372,0.00012263,2]
[323485501,1714044646297,-0.09183532,0.00012263,2]
[323485502,1714044646317,-198.74358096,0.00012263,2]
[323485503,1714044646326,-500.0,0.00012263,2]
[323485504,1714044646336,-190.40570906,0.00012263,2]
[323485505,1714044646350,-725.27429094,0.00012263,2]
[323485506,1714044646360,-500.0,0.00012263,2]
[323485507,1714044646369,-426.59591645,0.00012263,2]
[323485508,1714044870436,218.96,9.274e-05,2]
[323485511,1714045523123,208.01,8.746e-05,2]
[323485513,1714045644342,-621.73302935,0.00010753,2]
[323485514,1714045644364,-1.75585475,0.00010753,2]
[323485516,1714045759085,-157.28716472,0.00010738,2]
[323485517,1714045759107,-325.78301861,0.00010739,2]
[323485518,1714045759126,-305.39391058,0.00010739,2]
[323485519,1714045759146,-787.34412016,0.00010739,2]
[323485520,1714045759164,-539.40266579,0.0001074,2]
[323485521,1714045759183,-19.71961197,0.0001074,2]
[323485548,1714045832103,-908.84325293,0.00010736,2]
[323485549,1714045832114,-279.69657276,0.00010736,2]
[323485550,1714045832126,-1098.8377003,0.00010736,2]
[323485551,1714045832157,-333.00794755,0.00010736,2]
[323485552,1714045832168,-255.97559429,0.00010736,2]
[323485553,1714045832217,-205.1486273,0.00010736,2]
[323485554,1714045832227,-243.60013157,0.00010737,2]
[323485555,1714045832240,-18.74590599,0.00010737,2]
[323485556,1714045832251,-164.55036219,0.00010737,2]
[323485557,1714045832262,-194.44129511,0.00010737,2]
[323485558,1714045832272,-3194.10566048,0.00010737,2]
[323485559,1714045832285,-32070.18719183,0.00010737,2]
[323485560,1714045832299,-206.8225704,0.00010738,2]
[323485561,1714045832309,-155.0,0.00010738,2]
[323485562,1714045832319,-1061.01702893,0.00010738,2]
[323485563,1714045832328,-3414.07539919,0.00010738,2]
[323485564,1714045832337,-408.53368839,0.00010739,2]
[323485566,1714045832347,-487.44544673,0.00010739,2]
[323485568,1714045832356,-4333.06579145,0.00010744,2]
[323485570,1714045832365,-3634.0104,0.00010745,2]
[323485572,1714045832374,-150.0,0.00010751,2]
[323485574,1714045832384,-532.89332388,0.00010754,2]
[323485576,1714045832393,-150.0,0.00010767,2]
[323485578,1714045832404,-245.84,0.00010791,2]
[323485579,1714045832414,-499.99,0.00010791,2]
[323485580,1714045832424,-349.12,0.00010792,2]
[323485581,1714045832434,-1000.3158744,0.00011007,2]
[323485582,1714045832444,-208.01,0.0001101,2]
[323485583,1714045832454,-315.1,0.00011052,2]
[323485584,1714045832465,-164.46,0.00011157,2]
[323485585,1714045832475,-960.9991,0.00011515,2]
[323485586,1714045832486,-22102.1971,0.00011615,2]
[323485587,1714045832497,-52271.9707,0.00011615,2]
[323485588,1714045832507,-11177.7439,0.00011615,2]
[323485589,1714045832519,-1000.0,0.00011615,2]
[323485590,1714045832529,-2500.0,0.00011615,2]
[323485591,1714045832541,-2429.00902086,0.00011713,2]
[323485592,1714045832551,-4455.93261916,0.00011714,2]
[323485593,1714045832561,-176.22856803,0.00011714,2]
[323485594,1714045832571,-500.0,0.00011715,2]
[323485595,1714045832582,-500.0,0.00011715,2]
[323485596,1714045832592,-500.0,0.00011715,2]
[323485597,1714045832601,-500.0,0.00011715,2]
[323485598,1714045832611,-563.67652176,0.00011715,2]
[323485599,1714045832621,-500.0,0.00011715,2]
[323485600,1714045832630,-500.0,0.00011715,2]
[323485601,1714045832639,-500.0,0.00011715,2]
[323485602,1714045832649,-423.44944397,0.00011715,2]
[323485603,1714045832660,-500.0,0.00011715,2]
[323485604,1714045832670,-500.0,0.00011715,2]
[323485605,1714045832681,-500.0,0.00011715,2]
[323485606,1714045832691,-279.13092413,0.00011715,2]
[323485607,1714045832702,-500.0,0.00011715,2]